Cogmind - Beta 13 @@@ ROGUE MODE // 2024.04.14 @ 18:15:54 Player: Millea Result: Destroyed by as-85059 with Assembled Heavy Rifle Performance ------------- Evolutions (0) 0 Regions Visited (4) 800 Robots Destroyed (23) 115 Value Destroyed (471) 471 Prototype IDs (23) 460 Alien Tech Used (0) 0 Bonus (-15) -15 TOTAL SCORE: 1831 Bonus ------- Friendly Fire -15 Cogmind --------- Core Integrity 0/250 Matter 224/300 Energy 150/150 System Corruption 4% Temperature Cool (4) Movement Rolling (110) Ox2 Location -9/Mines Parts ------- > --- POWER (1) -------- Micro Nuclear Core > --- PROPULSION (2) --- Wheel Wheel > --- UTILITY (2) ------ High-capacity Storage Unit Makeshift System Shield > --- WEAPON (2) ------- Makeshift Sword > --- INVENTORY (20) --- Light Ion Engine Armored Treads Aluminum Leg Airjet Small Storage Unit Humpback Particle Charger Actuator Array Makeshift Cloaking Device Improved Power Shielding Hacking Suite Makeshift Hacking Suite Improved Trap Extractor (0/6) Assault Rifle Light Assault Rifle AWS/Gauss Remote Datajack Makeshift Spear Peak State ------------ > --- POWER ------------ Micro Nuclear Core > --- PROPULSION ------- Wheel Wheel > --- UTILITY ---------- High-capacity Storage Unit Makeshift System Shield > --- WEAPON ----------- Assault Rifle Makeshift Sword > --- INVENTORY -------- Light Ion Engine Armored Treads Aluminum Leg Airjet Small Storage Unit Humpback Particle Charger Actuator Array Makeshift Cloaking Device Improved Power Shielding Hacking Suite Makeshift Hacking Suite Improved Trap Extractor Assault Rifle Light Assault Rifle AWS/Gauss Remote Datajack Makeshift Spear [Rating: 22] Favorites ----------- Power Light Ion Engine Engine Light Ion Engine Power Core Micro Nuclear Core Propulsion Wheel Treads Light Treads Wheel Wheel Utility High-capacity Storage Unit Storage High-capacity Storage Unit Hackware Makeshift System Shield Protection Light Armor Plating Weapon Assault Rifle Energy Gun EM Pulse Gun Ballistic Gun Assault Rifle Launcher Grenade Launcher Slashing Weapon Makeshift Sword Build | -11 -10 -10 -10 -9 ------- Run | Yrd Mat Min Exi Min Slots Evolved . | . . . . . Power . | . . . . . Propulsion . | . . . . . Utility . | . . . . . Weapon . | . . . . . Parts Attached 21 | 4 11 1 4 1 Power 3 | 1 1 . 1 . Engine 2 | 1 1 . . . Core 1 | . . . 1 . Reactor . | . . . . . Propulsion 4 | 2 2 . . . Treads 2 | 2 . . . . Leg . | . . . . . Wheel 2 | . 2 . . . Hover . | . . . . . Flight . | . . . . . Utility 3 | . 2 . 1 . Device . | . . . . . Storage 1 | . 1 . . . Processor . | . . . . . Hackware 1 | . . . 1 . Protection 1 | . 1 . . . Artifact . | . . . . . Weapon 11 | 1 6 1 2 1 Energy Gun 2 | . 2 . . . Energy Cannon . | . . . . . Ballistic Gun 6 | 1 2 1 2 . Ballistic Cannon . | . . . . . Launcher 2 | . 2 . . . Special Weapon . | . . . . . Impact Weapon . | . . . . . Slashing Weapon 1 | . . . . 1 Piercing Weapon . | . . . . . Special Melee Weapon . | . . . . . Unidentified Prototypes . | . . . . . Parts Lost 8 | . 5 2 . 1 Power 1 | . 1 . . . Propulsion 1 | . 1 . . . Utility 1 | . . 1 . . Weapon 5 | . 3 1 . 1 Highest Loss Streak 3 | . 3 1 . 1 To Critical Strikes . | . . . . . Average Slot Usage (%) 88 | . 83 88 93 100 Engine 11 | . 13 14 7 . Core 2 | . . . 6 14 Treads 8 | . 21 . . . Wheel 19 | . 5 28 28 28 Storage 13 | . 12 14 14 14 Hackware 3 | . . . 9 14 Protection 3 | . 5 4 . . Energy Gun 1 | . 4 . . . Ballistic Gun 20 | . 9 26 26 28 Launcher 3 | . 9 . . . Naked Turns . | . . . . . Heaviest Build 51 | 6 51 49 49 49 Greatest Support 40 | 40 40 20 20 20 Greatest Overweight (x) 5 | . 5 2 2 2 Average Overweight (x) 1 | . 1 2 2 2 Largest Inventory Capacity 20 | 5 20 20 20 20 Average Capacity 18 | 5 18 20 20 20 Most Carried 20 | 5 5 10 20 20 Average Carried 8 | 3 3 7 13 20 Final Capacity 20 | 5 20 20 20 20 Final Carried 20 | 5 3 10 20 20 Class Distribution -------------------- 100% | Mutant Dominant Class ---------------- Mutant | -10/Materials Mutant | -10/Mines Mutant | -10/Exiles Mutant | -9/Mines Resources | -11 -10 -10 -10 -9 ----------- Run | Yrd Mat Min Exi Min Matter Collected 446 | 147 176 75 48 . Remotely . | . . . . . Salvage Created 594 | 50 428 68 48 . Parts 39 | 1 27 7 4 . Haulers Intercepted . | . . . . . Recyclers Shooed 1 | 1 . . . . Parts Field Recycled . | . . . . . Retrieved Matter . | . . . . . Parts Self-Destructed . | . . . . . Prevented . | . . . . . Kills | -11 -10 -10 -10 -9 ------- Run | Yrd Mat Min Exi Min Combat Hostiles Destroyed 15 | . 9 6 . . Guns 6 | . 2 4 . . AOE 9 | . 7 2 . . Classes Destroyed 6 | 1 4 1 . . Worker 2 | . 2 . . . Builder 2 | . 2 . . . Recycler 1 | 1 . . . . Watcher 3 | . 3 . . . Swarmer 6 | . . 6 . . Grunt 9 | . 9 . . . Best Kill Streak 6 | 1 6 3 . . Combat Bots Only 4 | . 4 3 . . Max Kills in Single Turn 2 | 1 2 2 . . Gunslinging . | . . . . . Exploded 2 | . 2 2 . . Melee . | . . . . . Uniques/NPCs Destroyed . | . . . . . Combat | -11 -10 -10 -10 -9 -------- Run | Yrd Mat Min Exi Min Hostile Shots Fired 79 | . 55 13 . 11 Missed 17 | . 10 4 . 3 Damage Taken 1107 | . 758 198 . 151 Core 259 | . 164 8 . 87 Absorbed by Shields . | . . . . . Core Remaining (%) 100 | 100 . . . . Volleys Fired 47 | 7 28 7 4 1 Largest 2 | 1 2 2 2 2 Hottest 80 | 20 80 50 40 40 Shots Fired 70 | 7 39 13 9 2 Gun 61 | 7 31 12 9 2 Cannon . | . . . . . Launcher 9 | . 8 1 . . Special . | . . . . . Kinetic 37 | 7 7 12 9 2 Thermal . | . . . . . Explosive 9 | . 8 1 . . Electromagnetic 24 | . 24 . . . Robot Hit Streak 10 | 4 10 4 8 . Robot Miss Streak 3 | 2 2 3 . 2 Penetration Max . | . . . . . Secondary Targets 1 | . 1 . . . Max Gunslinging Chain 1 | . 1 . . . Shots Hit Robots 49 | 5 30 7 7 . Core Hits 37 | 2 28 6 1 . Critical Kills . | . . . . . Critical Parts Destroyed . | . . . . . Critical Strikes . | . . . . . Melee Attacks 1 | . . . . 1 Impact . | . . . . . Slashing 1 | . . . . 1 Piercing . | . . . . . Sneak Attacks . | . . . . . Combat Hostiles . | . . . . . Follow-up Attacks . | . . . . . Damage Inflicted 1611 | 42 1237 227 90 15 Guns 523 | 42 313 63 90 15 Cannons . | . . . . . Explosions 1060 | . 920 140 . . Melee . | . . . . . Ramming 28 | . 4 24 . . Kinetic 256 | 42 46 63 90 15 Thermal 378 | . 378 . . . Explosive 682 | . 542 140 . . Electromagnetic 267 | . 267 . . . Impact . | . . . . . Slashing . | . . . . . Piercing . | . . . . . Highest Corruption 1 | . . 1 1 1 Average Corruption 1 | . . 1 1 1 Corruption Purged . | . . . . . Corruption Blocked . | . . . . . Effects 6 | . . . 6 . Message Errors 4 | . . . 4 . Data Loss (minor) 1 | . . . 1 . Misfires 1 | . . . 1 . Overload Shots . | . . . . . Overflow Damage 33 | . . 33 . . Projectiles . | . . . . . Explosions 29 | . . 29 . . Melee 4 | . . 4 . . Knockbacks . | . . . . . Impact . | . . . . . Kinetic . | . . . . . Secondary . | . . . . . Self-Inflicted Damage 186 | . 144 42 . . Shots 6 | . 5 1 . . Rammed 3 | . 2 1 . . Targets Rammed 3 | . 2 1 . . Kicked . | . . . . . Crushed . | . . . . . Highest Temperature 312 | . 312 12 4 4 Average Temperature 112 | . 135 5 3 3 Received Heat Transfer 386 | . 366 . . 20 Siege Activations . | . . . . . Robots Corrupted . | . . . . . Combat Hostiles . | . . . . . Parts Fried . | . . . . . Impact Corruptions 1 | . . 1 . . Robots Melted . | . . . . . Combat Hostiles . | . . . . . Parts Melted 1 | . 1 . . . Heat Transferred 450 | . 450 . . . Parts Sabotaged . | . . . . . Parts Stolen . | . . . . . Parts Stripped . | . . . . . Power Chain Reactions 4 | . 4 . . . Alert | -11 -10 -10 -10 -9 ------- Run | Yrd Mat Min Exi Min Peak Influence 232 | 5 232 204 . . Initial 49 | . 3 49 . . Average 129 | 1 129 177 . . Maximum Alert Level 1 | . 1 1 . . Low Security (%) 82 | 100 71 94 . 100 Level 1 17 | . 28 5 . . Level 2 . | . . . . . Level 3 . | . . . . . Level 4 . | . . . . . Level 5 . | . . . . . High Security . | . . . . . Max Security . | . . . . . Squads Dispatched 2 | . 2 . . . Investigation 1 | . 1 . . . Extermination . | . . . . . Reinforcement 1 | . 1 . . . Assault . | . . . . . Garrison . | . . . . . Intercept . | . . . . . Searches Triggered . | . . . . . Construction Impeded . | . . . . . Haulers Reinforced . | . . . . . Active Scanning Responses . | . . . . . Cargo Convoy Interrupts . | . . . . . Stealth | -11 -10 -10 -10 -9 --------- Run | Yrd Mat Min Exi Min Distress Signals 2 | . 2 . . . Communications Jammed . | . . . . . Distress Signals . | . . . . . Times Spotted 32 | . 15 4 . 13 Peak Tracking Total 14 | . 8 3 . 14 Tactical Retreats . | . . . . . Traps | -11 -10 -10 -10 -9 ------- Run | Yrd Mat Min Exi Min Traps Triggered 3 | . 1 2 . . Indirectly . | . . . . . Trap Hack Attempts . | . . . . . Triggered . | . . . . . Disarmed . | . . . . . Reprogrammed . | . . . . . Reused . | . . . . . Traps Extracted . | . . . . . Installed . | . . . . . Triggered . | . . . . . Machines | -11 -10 -10 -10 -9 ---------- Run | Yrd Mat Min Exi Min Machines Disabled . | . . . . . Max in Single Turn . | . . . . . Machines Repaired . | . . . . . Machines Dismantled . | . . . . . Machines Sabotaged . | . . . . . Overloaded Fab Kills . | . . . . . Hacking | -11 -10 -10 -10 -9 --------- Run | Yrd Mat Min Exi Min Machines Accessed 7 | . 3 1 2 1 Terminals 3 | . 2 . . 1 Fabricators . | . . . . . Repair Stations . | . . . . . Recycling Units 1 | . 1 . . . Scanalyzers . | . . . . . Garrison Access . | . . . . . Total Hacks 22 | . 9 1 7 5 Successful 13 | . 5 1 7 . Failed 9 | . 4 . . 5 Catastrophic 2 | . . . . 2 Database Lockouts . | . . . . . Manual 7 | . 6 . 1 . Terminals 11 | . 6 . . 5 Fabricators . | . . . . . Repair Stations . | . . . . . Recycling Units 3 | . 3 . . . Scanalyzers . | . . . . . Garrison Access . | . . . . . Terminal Hacks 12 | . 4 1 7 . Record 6 | . . . 6 . Open Door 1 | . . 1 . . Scanalyzer Index 1 | . 1 . . . Alert Level 1 | . 1 . . . Locate Traps 1 | . 1 . . . Zone Layout 1 | . 1 . . . Derelict Proto ID Bank 1 | . . . 1 . Fabricator Hacks . | . . . . . Repair Station Hacks . | . . . . . Recycling Unit Hacks . | . . . . . Scanalyzer . | . . . . . Garrison Access Hacks . | . . . . . Unauthorized Hacks 1 | . 1 . . . Terminals . | . . . . . Fabricators . | . . . . . Repair Stations . | . . . . . Recycling Units 1 | . 1 . . . Mask 1 | . 1 . . . Scanalyzers . | . . . . . Garrison Access . | . . . . . Data Cores Recovered . | . . . . . Used . | . . . . . Hacking Detections 3 | . 2 . . 1 Full Trace Events 1 | . . . . 1 Feedback Events . | . . . . . Feedback Blocked . | . . . . . Robot Schematics Acquired . | . . . . . Robots Built . | . . . . . Authchips . | . . . . . Time . | . . . . . Total Robot Build Rating . | . . . . . Part Schematics Acquired . | . . . . . Parts Built . | . . . . . Authchips . | . . . . . Time . | . . . . . Total Part Build Rating . | . . . . . Parts Repaired . | . . . . . Time . | . . . . . Parts Recycled . | . . . . . Recycled Matter . | . . . . . Retrieved Matter . | . . . . . Retrieved Components . | . . . . . Parts Scanalyzed . | . . . . . Part Schematics Acquired . | . . . . . Parts Damaged . | . . . . . Bothacking | -11 -10 -10 -10 -9 ------------ Run | Yrd Mat Min Exi Min Used RIF Installer . | . . . . . Robots Hacked . | . . . . . Non-combat . | . . . . . Combat . | . . . . . Robot Hacks Applied . | . . . . . Relay Couplers Released . | . . . . . Fabnet Peak Effective % . | . . . . . Robots Rewired 3 | . . . 3 . Allies Hacked . | . . . . . Hacks Repelled . | . . . . . Allies | -11 -10 -10 -10 -9 -------- Run | Yrd Mat Min Exi Min Total Allies 5 | . . 2 3 . Largest Group 3 | . . 2 3 3 Highest-Rated Group 50 | . . 49 50 50 Highest-Rated Ally 31 | . . 31 31 21 Total Orders . | . . . . . Ally Attacks 4 | . . . . 4 Total Damage 112 | . . . . 112 Kills 1 | . . . . 1 Allies Corrupted . | . . . . . Allies Melted . | . . . . . Intel | -11 -10 -10 -10 -9 ------- Run | Yrd Mat Min Exi Min Robot Analysis Total . | . . . . . Derelict Logs Recovered . | . . . . . Drone Launches . | . . . . . Drone Recoveries . | . . . . . Exploration | -11 -10 -10 -10 -9 ------------- Run | Yrd Mat Min Exi Min Turns Passed 1594 | 95 572 353 541 33 Spaces Moved 1087 | 49 266 295 453 24 Core 6 | 6 . . . . Treads 203 | 43 160 . . . Legs . | . . . . . Wheels 878 | . 106 295 453 24 Hover . | . . . . . Flight . | . . . . . Fastest Speed 50 | 50 110 110 110 110 Average Speed 128 | 146 180 110 110 110 Slowest Speed 320 | 160 320 110 110 110 Overloaded Moves . | . . . . . Propulsion Burnouts . | . . . . . Robots Hopped . | . . . . . Cave-ins Triggered . | . . . . . Exploration Rate (%) 44 | 6 46 74 89 6 Regions Visited 4 Branch Regions 3 Pre-discovered Areas 1 | . . . 1 . Known Exits Taken . | . . . . . Unknown Exits Taken 4 | 1 1 1 1 . Scrap Searched . | . . . . . Spaces Dug . | . . . . . Terrain Destroyed 68 | . 58 10 . . Melee . | . . . . . Projectile . | . . . . . AOE 68 | . 58 10 . . Terrain Rammed . | . . . . . Walls Destroyed . | . . . . . Machines Disabled . | . . . . . Actions | -11 -10 -10 -10 -9 --------- Run | Yrd Mat Min Exi Min Total 1204 | 67 312 311 487 27 Wait 4 | . 3 1 . . Move 1083 | 48 265 294 452 24 Hop . | . . . . . Pick Up 23 | 7 2 7 7 . Fast Attach 12 | 3 5 1 3 . Attach 5 | 1 4 . . . Detach . | . . . . . Swap 4 | . 2 . 1 1 Drop 4 | 1 1 . 2 . Fire 47 | 7 28 7 4 1 Melee 1 | . . . . 1 Ram 1 | . . 1 . . Kick . | . . . . . Crush 2 | . 2 . . . Escape Stasis . | . . . . . Rewire 18 | . . . 18 . Trap . | . . . . . Miscellaneous . | . . . . . Route ------- -11/Scrapyard -10/Materials (discovered 2 exits: [*Mat] / *Min) -10/Mines (discovered 3 exits: [*Mat x2] / *Exi) -10/Exiles -9/Mines History --------- Turn | Location | Event 5 | -11/Scrapyard | Discovered new exit (range 14) 96 | -11/Scrapyard | Entered Materials 280 | -10/Materials | Lost 3 parts (1p2w) 305 | -10/Materials | Build established: Mutant 333 | -10/Materials | Core integrity fell below 50% 402 | -10/Materials | Discovered new exit (range 12) 579 | -10/Materials | Discovered new exit (range 12) 668 | -10/Materials | Entered Mines 757 | -10/Mines | Discovered new exit (range 9) 759 | -10/Mines | Discovered new exit (range 12) 788 | -10/Mines | Met a Derelict who couldn't figure out how to use a Trap Extractor 1017 | -10/Mines | Deemed a non-threat by the Exiles lab entrance 1017 | -10/Mines | Discovered new exit (range 5) 1021 | -10/Mines | Entered Exiles 1021 | -10/Exiles | Found Exiles lab destroyed 1021 | -10/Exiles | Accompanied by 1 ally 1051 | -10/Exiles | Led the pair of lost Derelicts to a safe place 1362 | -10/Exiles | Learned location of Zion (-6) 1425 | -10/Exiles | Opened EX-Vault 1432 | -10/Exiles | Found Prototype Ballistic Gun 1434 | -10/Exiles | Identified AWS/Gauss 1546 | -10/Exiles | Discovered new exit (range 14) 1562 | -10/Exiles | Entered Mines 1562 | -9/Mines | Accompanied by 3 allies 1563 | -9/Mines | Assembled infested the area 1568 | -9/Mines | Assisted by a Guerilla fighting off Assembled 1591 | -9/Mines | Core integrity fell below 20% 1595 | -9/Mines | Destroyed by as-85059 with Assembled Heavy Rifle Last Messages --------------- group of Assembled to figure out where they're coming from, and they're closing on this area, come on!" 01569_ K-01 Serf collects debris. 01586_ 4L-D2L(h): "I'll hold them off! Go on ahead or try to find another way!" 01586_ HV Slug penetrates as-79966. 01586_ as-79966 suffers critical hit (Destroy). 01588_ 4L-D2L(h) system corrupted by crushing effect. 01589_ 4L-D2L(h) system terminally corrupted. 01589_ Slug penetrates Wall. 01592_ Slug penetrates as-39975. 01592_ as-39975 destroyed. 01593_ K-01 Serf collects debris. 01593_ as-74807 destroyed. 01595_ Assault Rifle destroyed. 01595_ System corrupted by crushing effect (+3). 01595_ Slug penetrates as-48957. 01595_ K-01 Serf collects debris. Map ----- +----------------------------------------------------+ | ??????????????????????????????????????????????? | | ??????????????????????????????????????????????? | | ??????????????????????????????????????????????? | | ??????????????????????????????????????????????? | | ??????????????????????????????????????????????? | | ??????????????????????????????????????????????? | | ??????????????????????????????????????????????? | | ??????????????????????????????????????????????? | | ??????????????????????????????????????????????? | | ??????????????????????????????????????????????? | | ????????????????????????? ?????????????????? | | ??????????????????????? ????????????????? | | ??????????????????????? % ????????????????? | | ???????????????????????? ????????????????? | | ???????????????????????? ????????????????? | | ???????????????????????? ?????????????????? | | ???????????????????????? ?????????????????? | | ????????????????????????? ?????????????????? | | ????????????????????????? ?????????????????? | | ????????????????????????? #?????????????????? | | ?????????????????????????# #?????????????????? | | ?????????????????????????# #?????????????????? | | ?????????????????????????#=a#?????????????????? | | ?????????????????????????#aa#?????????????????? | | ????????????????????????##aa##########????????? | | ????????????????????????#@aahgh kk #????????? | | ????????????????????????############ #????????? | | ???????????????????????????????????# #????????? | | ??????????????????????????????????## ######???? | | ??????????????????????????????????# #???? | | ??????????????????????????????????# #???? | | ??????????????????????????????????# #???? | | ?????????????????????????????????## #???? | | ?????????????????????????????????#T #???? | | ?????????????????????????????????## #???? | | ??????????????????????????????????#########???? | | ??????????????????????????????????????????????? | | ??????????????????????????????????????????????? | | ??????????????????????????????????????????????? | | ??????????????????????????????????????????????? | | ??????????????????????????????????????????????? | | ??????????????????????????????????????????????? | | ??????????????????????????????????????????????? | | ??????????????????????????????????????????????? | | ??????????????????????????????????????????????? | | ??????????????????????????????????????????????? | | ??????????????????????????????????????????????? | | ??????????????????????????????????????????????? | | ??????????????????????????????????????????????? | | ??????????????????????????????????????????????? | +----------------------------------------------------+ Best States ------------- Heat Dissipation 25 Energy Generation 15 Energy Capacity 250 Matter Stores 286 Matter Capacity 300 Sight Range 16 Terrain Scan Density 10 Armor Coverage 150 Evasion (%) 40 Recoil Reduction 2 Defensive Hacking 11 Item Schematics ----------------- None Robot Schematics ------------------ None Fabricated ------------ Nothing Alien Tech Used ----------------- None Achievements -------------- None Challenges ------------ None Game ------ Seed TitaniumZioniteComputer Manual? 0 Play Time 00:09:04 Cumulative 195.9 hours Start 2024.04.14 @ 18:07:40 End 2024.04.14 @ 18:15:54 Sessions 1 Manual Loads 0 Difficulty Rogue Special Mode None Game No. 160 Rogue 160 Adventurer 0 Explorer 0 Win Type - Total 4 Types 4/0/0/0/0/0/0/0/0 Lore% 69 Gallery% 77 Achievement% 64 Wizard Run 0 Options --------- Layout 2 ASCII 1 Keyboard 0 Movement Mouse Keybinds 0 Fullscreen 2 Font 24/Smallcaps Map View 50x44 Zoom Use 0% Tactical HUD 1 Map Filters NONE Filters NONE Steam 1 RUN: be94bea2-11be-4001-b0e1-e1f0accb2139